Workbook

Sheet Opening Remarks
B2: This "Simplified Tariff Model Transmission Services" has been prepared by Fluxys Belgium SA/NV for the public consultation organized in the context of the preparation of the next tariff proposal for the period 2020-2023. This model is a simplified model only. It is not aimed at calculating accurate tariffs but giving tendencies only and is provided for indicative purposes only. Numbers and parameters contained in this document are indicative best estimates subject to possible changes or corrections. Under no circumstances shall any person, company, corporate body or other entity be entitled to assert any right, claim or other entitlement against Fluxys Belgium SA/NV (or either its directors, managing directors or employees) as a result, or on the basis of this model. | M2: Version 1.0
M3: Release date : 15/10/2018
M4: Author : Fluxys Belgium SA/NV
B22: Color codes
B23: Input | C23: Blue letter type: input data / parameter
B24: Goalseek | C24: Blue cell: result or objective of goalseek/solver
B25: Instruction | C25: Green letter type: instruction on how to run the calculation model

Sheet Parameters
B2: Macro-economic parameters | H2: 2020 | I2: 2021 | J2: 2022 | K2: 2023
B3: Y-on-Y tariff indexation | C3: (Estimated impact as link with allowed revenue is not done in this simplifed model) | H3: 0.016 | I3: 0.017 | J3: 0.017 | K3: 0.017
B5: Allowed Revenue for Transmission Services | H5: 2020 | I5: 2021 | J5: 2022 | K5: 2023
B6: Revenue to be covered by Transmission Services after utilisation of Reg Account | E6: M EUR | H6: 237.76 | I6: 237.88 | J6: 234.07 | K6: 236.02
B8: Tariff parameters
B9: Entry/exit ratio | N9: Instructions : To test other hypotheses, change the parameters and then hit button 'RECALCULATE THE MODEL' Alternatively, you can copy cells F29:F34 in hard values to cells H29:H34 until values M29:M34 are at zero (an excel "solver" can be used) You can always revert to initial values by hitting button 'RESET TO INITIAL VALUES'
B10: entry | F10: 0.33
B11: exit | F11: =1-F10 -> 0.67
B13: Discount for storage
B14: entry from storage | F14: 0.5 | G14: (Estimated impact based based on low share in total expected capacity sales)
B15: exit to storage | F15: 1 | G15: (Estimated impact based based on low share in total expected capacity sales)
B17: interruptible/backhaul tariff | F17: 0.9 | G17: (Estimated impact based based on low share in total expected capacity sales)
B19: OCUCs calculation | F19: discount | G19: weighted average standard Entry + Exit tariff
B20: Zelzate 1/2 - IZT/Zeebrugge | D20: €/kWh/h/y | F20: -0.375 | G20: =(('Results - Estimated ref. prices'!D10+'Results - Estimated ref. prices'!K12)*SUM('Calculating sheet - CWD method'!G23:J23)+('Results - Estimated ref. prices'!D13+'Results - Estimated ref. prices'!K9)*SUM('Calculating sheet - CWD method'!G24:J24))/(SUM('Calculating sheet - CWD method'!G23:J24)) -> 1.6624603
B21: IZT/Zeebrugge - Zelzate 1/2 | D21: €/kWh/h/y | F21: -0.375 | G21: =G20 -> 1.6624603
B22: Dunkirk LNG Terminal/Alveringem - IZT/Zeebrugge | D22: €/kWh/h/y | F22: -0.25 | G22: ='Results - Estimated ref. prices'!D5+'Results - Estimated ref. prices'!K12 -> 1.591165691
B23: Blaregnies Segeo/Troll - IZT/Zeebrugge | D23: €/kWh/h/y | F23: -0.25 | G23: ='Results - Estimated ref. prices'!D5+'Results - Estimated ref. prices'!K12 -> 1.591165691
B24: s Gravenvoeren - Eynatten 1/2 | D24: €/kWh/h/y | F24: -0.575 | G24: =(('Results - Estimated ref. prices'!D8+'Results - Estimated ref. prices'!K7)*SUM('Calculating sheet - CWD method'!G26:J26)+('Results - Estimated ref. prices'!D6+'Results - Estimated ref. prices'!K9)*SUM('Calculating sheet - CWD method'!G25:J25))/(SUM('Calculating sheet - CWD method'!G25:J26)) -> 2.02500911
B25: Eynatten 1/2 - 's Gravenvoeren | D25: €/kWh/h/y | F25: -0.575 | G25: =G24 -> 2.02500911
F27: copy | H27: paste
H28: Year 2020 | I28: Year 2021 | J28: Year 2022 | K28: Year 2023 | M28: Objective = should at zero
F29: =G20*(1+F20) -> 1.039037688 | G29: -> | H29: 1.039046885 | I29: =H29*(1+I$3) -> 1.056710682 | J29: =I29*(1+J$3) -> 1.074674763 | K29: 1.092944234 | M29: =H29-F29 -> 9.197084367e-06
F30: =G21*(1+F21) -> 1.039037688 | G30: -> | H30: 1.039046885 | I30: 1.056710682 | J30: 1.074674763 | K30: 1.092944234 | M30: 9.197084367e-06
F31: 1.193374268 | G31: -> | H31: 1.193384835 | I31: 1.213672378 | J31: 1.234304808 | K31: 1.25528799 | M31: 1.056721608e-05
F32: 1.193374268 | G32: -> | H32: 1.193384835 | I32: 1.213672378 | J32: 1.234304808 | K32: 1.25528799 | M32: 1.056721608e-05
F33: 0.860628872 | G33: -> | H33: 0.860636483 | I33: 0.8752673032 | J33: 0.8901468474 | K33: 0.9052793438 | M33: 7.611049684e-06
F34: 0.860628872 | G34: -> | H34: 0.860636483 | I34: 0.8752673032 | J34: 0.8901468474 | K34: 0.9052793438 | M34: 7.611049684e-06

Sheet Calculating sheet - CWD method
B2: CWD proposed RPM - simplified | K2: 2020 | L2: 2021 | M2: 2022 | N2: 2023
B3: Allowed revenue transmission | K3: =Parameters!H6*1000000 -> 237760000 | L3: =Parameters!I6*1000000 -> 237880000 | M3: =Parameters!J6*1000000 -> 234070000 | N3: =Parameters!K6*1000000 -> 236020000
H4: Allowed revenue TRM - allocated to OCUC | K4: =SUM(G41:G45)+SUM(G102:G106) -> 21380713.96 | L4: =SUM(I41:I45)+SUM(I102:I106) -> 20994166.31 | M4: =SUM(K41:K45)+SUM(K102:K106) -> 20308207.81 | N4: =SUM(M41:M45)+SUM(M102:M106) -> 18506626.78
H5: Allowed revenue TRM - remaining | K5: =K3-K4 -> 216379286 | L5: =L3-L4 -> 216885833.7 | M5: =M3-M4 -> 213761792.2 | N5: =N3-N4 -> 217513373.2
B6: Entry/Exit ratio
E7: Entry | F7: =Parameters!F10 -> 0.33 | H7: Allowed revenue - TRM - Entry | K7: =K5*$F7 -> 71405164.39 | L7: =L5*$F7 -> 71572325.12 | M7: =M5*$F7 -> 70541391.42 | N7: =N5*$F7 -> 71779413.16
E8: Exit | F8: =1-F7 -> 0.67 | H8: Allowed revenue - TRM - Exit | K8: =K5*$F8 -> 144974121.6 | L8: =L5*$F8 -> 145313508.6 | M8: =M5*$F8 -> 143220400.8 | N8: =N5*$F8 -> 145733960.1
B10: GCV ratio: L/H tariffs | F10: =11.3/9.8 -> 1.153061224
G12: Forecasted contracted capacity "Firm H-Gas equivalent" (in kWh/h/yr) | K12: CWD Weight of points in %
G13: 2020 | H13: 2021 | I13: 2022 | J13: 2023 | K13: 2020 | L13: 2021 | M13: 2022 | N13: 2023
B14: ENTRY | C14: H-grid | D14: IP | E14: Alveringem | F14: Virtualys | G14: 1579102.737 | H14: 1828167.625 | I14: 2121763.304 | J14: 2357386.393 | K14: 0.0192069308 | L14: 0.02302125308 | M14: 0.02647265916 | N14: 0.02959105343
E15: Blaregnies H (Segeo & Troll) | G15: 973928.7375 | H15: 1023277.704 | I15: 1081449.867 | J15: 1128135.516 | K15: 0.007610029906 | L15: 0.008226591499 | M15: 0.008814546853 | N15: 0.009819613634
E16: Zeebrugge (incl. IZT, ZPT, LNG-Terminal) | G16: 33033177.41 | H16: 34097847.2 | I16: 39492988.85 | J16: 39377558.23 | K16: 0.3304571854 | L16: 0.3620650557 | M16: 0.4172220242 | N16: 0.4213363231
E17: Zelzate 1+2 | G17: 3549182.831 | H17: 3837181.592 | I17: 4453417.502 | J17: 4550949.61 | K17: 0.03788678355 | L17: 0.04307141632 | M17: 0.0495048192 | N17: 0.05107949833
E18: Zandvliet H | G18: 0.1 | H18: 0.1 | I18: 0.1 | J18: 0.1 | K18: 1.160109404e-09 | L18: 1.205324768e-09 | M18: 1.193574505e-09 | N18: 1.20339678e-09
E19: 's Gravenvoeren | G19: 12292556.41 | H19: 10511491.86 | I19: 9841681.313 | J19: 10405383.54 | K19: 0.1442334156 | L19: 0.1240817444 | M19: 0.1155321393 | N19: 0.1257052738
E20: Eynatten 1+2 | G20: 11066816.28 | H20: 10806706.29 | I20: 10864696.5 | J20: 11722640.05 | K20: 0.1357208162 | L20: 0.1331531207 | M20: 0.1328841759 | N20: 0.1470102216
E21: Loenhout | G21: 2674480.577 | H21: 3037341.343 | I21: 986914.5338 | J21: 0.045 | K21: 0.03345271091 | L21: 0.03920536124 | M21: 0.01259766103 | N21: 5.771012521e-10
D22: OCUC | E22: Virtualys -> Zeebrugge | G22: 9089244 | H22: 9089244 | I22: 9089244 | J22: 8912859.385
E23: Zelzate -> Zeebrugge | G23: 5780549.313 | H23: 5262056.293 | I23: 4291661 | J23: 4310871
E24: Zeebrugge -> Zelzate | G24: 4357345.313 | H24: 4166070 | I24: 4166070 | J24: 2385190
E25: Eynatten 1+2 -> 's Gravenvoeren | G25: 0.1 | H25: 0.1 | I25: 0.1 | J25: 0.1
E26: s Gravenvoeren -> Eynatten 1+2 | G26: 0.1 | H26: 0.1 | I26: 0.1 | J26: 0.1
C27: L-grid | D27: IP | E27: Hilvarenbeek L | G27: 26584041 | H27: 23439236.66 | I27: 20675746.27 | J27: 18096449.4 | K27: 0.2914321258 | L27: 0.2671754552 | M27: 0.2369719726 | N27: 0.2154580138
E28: Blaregnies L | G28: 0.1 | H28: 0.1 | I28: 0.1 | J28: 0.1 | K28: 6.789513119e-10 | L28: 6.636144368e-10 | M28: 6.105841026e-10 | N28: 5.620584653e-10
K29: =SUM(K14:K28) -> 1 | L29: =SUM(L14:L28) -> 1 | M29: =SUM(M14:M28) -> 1 | N29: =SUM(N14:N28) -> 1
G30: Revenue per Entry point (in €) and non equalized pseudo Tariffs in quivalent H (in €/kWh/h/yr)
G31: 2020 | I31: 2021 | K31: 2022 | M31: 2023
G32: Revenue/point | H32: Tariff | I32: Revenue/point | J32: Tariff | K32: Revenue/point | L32: Tariff | M32: Revenue/point | N32: Tariff
B33: ENTRY | C33: H-grid | D33: IP | E33: Alveringem | F33: Virtualys | G33: =K14*$K$7 -> 1371474.051 | H33: =G33/G14*1 -> 0.8685147707 | I33: =L14*$L$7 -> 1647684.61 | J33: =I33/H14*1 -> 0.9012765502 | K33: =M14*$M$7 -> 1867418.212 | L33: =K33/I14*1 -> 0.8801256052 | M33: =N14*$N$7 -> 2124028.45 | N33: =M33/J14*1 -> 0.9010098879
E34: Blaregnies H (Segeo & Troll) | G34: 543395.4365 | H34: 0.5579416805 | I34: 588796.2814 | J34: 0.5754022385 | K34: 621790.3998 | L34: 0.5749599855 | M34: 704846.1041 | N34: 0.6247885067
E35: Zeebrugge (incl. IZT, ZPT, LNG-Terminal) | G35: 23596349.65 | H35: 0.7143227356 | I35: 25913837.88 | J35: 0.759984574 | K35: 29431422.12 | L35: 0.745231571 | M35: 30243274.02 | N35: 0.7680332498
E36: Zelzate 1+2 | G36: 2705312.008 | H36: 0.7622351781 | I36: 3082721.412 | J36: 0.8033816846 | K36: 3492138.828 | L36: 0.7841480901 | M36: 3666456.415 | N36: 0.8056464539
E37: Zandvliet H | G37: 0.0828378027 | H37: 0.828378027 | I37: 0.08626789619 | J37: 0.8626789619 | K37: 0.08419640637 | L37: 0.8419640637 | M37: 0.08637911466 | N37: 0.8637911466
E38: 's Gravenvoeren | G38: 10299010.75 | H38: 0.8378249738 | I38: 8880818.951 | J38: 0.8448676048 | K38: 8149797.857 | L38: 0.8280899978 | M38: 9023050.786 | N38: 0.8671521571
E39: Eynatten 1+2 | G39: 9691167.19 | H39: 0.87569604 | I39: 9530078.443 | J39: 0.8818670727 | K39: 9373834.667 | L39: 0.8627792474 | M39: 10552307.43 | N39: 0.9001647571
E40: Loenhout | G40: 2388696.322 | H40: 0.8931440153 | I40: 2806018.861 | J40: 0.9238404723 | K40: 888656.5376 | L40: 0.9004392043 | M40: 0.04142398921 | N40: 0.9205330935
D41: OCUC | E41: Virtualys -> Zeebrugge | G41: =H41*G22 -> 3579498.765 | H41: =Parameters!H31*$F$7 -> 0.3938169957 | I41: =J41*H22 -> 3640350.244 | J41: =Parameters!I31*$F$7 -> 0.4005118846 | K41: =L41*I22 -> 3702236.199 | L41: =Parameters!J31*$F$7 -> 0.4073205867 | M41: =N41*J22 -> 3692107.762 | N41: =Parameters!K31*$F$7 -> 0.4142450366
E42: Zelzate -> Zeebrugge | G42: =H42*G23 -> 1982066.379 | H42: =Parameters!H29*$F$7 -> 0.342885472 | I42: =J42*H23 -> 1834955.461 | J42: =Parameters!I29*$F$7 -> 0.348714525 | K42: =L42*I23 -> 1522006.124 | L42: =Parameters!J29*$F$7 -> 0.3546426719 | M42: =N42*J23 -> 1554808.73 | N42: =Parameters!K29*$F$7 -> 0.3606715973
E43: Zeebrugge -> Zelzate | G43: =H43*G24 -> 1494070.404 | H43: =Parameters!H30*$F$7 -> 0.342885472 | I43: =J43*H24 -> 1452769.121 | J43: =Parameters!I30*$F$7 -> 0.348714525 | K43: =L43*I24 -> 1477466.196 | L43: =Parameters!J30*$F$7 -> 0.3546426719 | M43: =N43*J24 -> 860270.2873 | N43: =Parameters!K30*$F$7 -> 0.3606715973
E44: Eynatten 1+2 -> 's Gravenvoeren | G44: =H44*G25 -> 0.02840100394 | H44: =Parameters!H34*$F$7 -> 0.2840100394 | I44: =J44*H25 -> 0.02888382101 | J44: =Parameters!I34*$F$7 -> 0.2888382101 | K44: =L44*I25 -> 0.02937484596 | L44: =Parameters!J34*$F$7 -> 0.2937484596 | M44: =N44*J25 -> 0.02987421834 | N44: =Parameters!K34*$F$7 -> 0.2987421834
E45: 's Gravenvoeren -> Eynatten 1+2 | G45: =H45*G26 -> 0.02840100394 | H45: =Parameters!H33*$F$7 -> 0.2840100394 | I45: =J45*H26 -> 0.02888382101 | J45: =Parameters!I33*$F$7 -> 0.2888382101 | K45: =L45*I26 -> 0.02937484596 | L45: =Parameters!J33*$F$7 -> 0.2937484596 | M45: =N45*J26 -> 0.02987421834 | N45: =Parameters!K33*$F$7 -> 0.2987421834
C46: L-grid | D46: IP | E46: Hilvarenbeek L | G46: =K27*$K$7 -> 20809758.85 | H46: =G46/G27*1 -> 0.7827914067 | I46: =L27*$L$7 -> 19122368.54 | J46: =I46/H27*1 -> 0.8158272737 | K46: =M27*$M$7 -> 16716332.67 | L46: =K46/I27*1 -> 0.8084996041 | M46: =N27*$N$7 -> 15465449.79 | N46: =M46/J27*1 -> 0.8546123853
E47: Blaregnies L | G47: =K28*$K$7 -> 0.04848063004 | H47: =G47/G28*1 -> 0.4848063004 | I47: =L28*$L$7 -> 0.04749642822 | J47: =I47/H28*1 -> 0.4749642822 | K47: =M28*$M$7 -> 0.04307145218 | L47: =K47/I28*1 -> 0.4307145218 | M47: =N28*$N$7 -> 0.0403442268 | N47: =M47/J28*1 -> 0.403442268
G48: =SUM(G33:G47)-(K7+K4*F7) -> 0 | I48: =SUM(I33:I47)-(L7+L4*F7) -> 0 | K48: =SUM(K33:K47)-(M7+M4*F7) -> 0 | M48: =SUM(M33:M47)-(N7+N4*F7) -> 0
G49: "virtual tariff" for "equivalent firm H-gas capacity" (in €/kWh/h/yr)
G50: 2020 | H50: =G50+1 -> 2021 | I50: =H50+1 -> 2022 | J50: =I50+1 -> 2023
G51: =Parameters!H3 -> 0.016 | H51: =Parameters!I3 -> 0.017 | I51: =Parameters!J3 -> 0.017 | J51: =Parameters!K3 -> 0.017
B52: ENTRY | C52: H-grid | D52: IP | E52: Alveringem | F52: Virtualys | G52: ='Calculating sheet - CWD method'!H33 -> 0.8685147707 | H52: ='Calculating sheet - CWD method'!J33 -> 0.9012765502 | I52: ='Calculating sheet - CWD method'!L33 -> 0.8801256052 | J52: ='Calculating sheet - CWD method'!N33 -> 0.9010098879
E53: Blaregnies H (Segeo & Troll) | G53: ='Calculating sheet - CWD method'!H34 -> 0.5579416805 | H53: ='Calculating sheet - CWD method'!J34 -> 0.5754022385 | I53: ='Calculating sheet - CWD method'!L34 -> 0.5749599855 | J53: ='Calculating sheet - CWD method'!N34 -> 0.6247885067
E54: Zeebrugge (incl. IZT, ZPT, LNG-Terminal) | G54: ='Calculating sheet - CWD method'!H35 -> 0.7143227356 | H54: ='Calculating sheet - CWD method'!J35 -> 0.759984574 | I54: ='Calculating sheet - CWD method'!L35 -> 0.745231571 | J54: ='Calculating sheet - CWD method'!N35 -> 0.7680332498
E55: Zelzate 1+2 | G55: ='Calculating sheet - CWD method'!H36 -> 0.7622351781 | H55: ='Calculating sheet - CWD method'!J36 -> 0.8033816846 | I55: ='Calculating sheet - CWD method'!L36 -> 0.7841480901 | J55: ='Calculating sheet - CWD method'!N36 -> 0.8056464539
E56: Zandvliet H | G56: 0 | H56: 0 | I56: 0 | J56: 0
E57: 's Gravenvoeren | G57: ='Calculating sheet - CWD method'!H38 -> 0.8378249738 | H57: ='Calculating sheet - CWD method'!J38 -> 0.8448676048 | I57: ='Calculating sheet - CWD method'!L38 -> 0.8280899978 | J57: ='Calculating sheet - CWD method'!N38 -> 0.8671521571
E58: Eynatten 1+2 | G58: ='Calculating sheet - CWD method'!H39 -> 0.87569604 | H58: ='Calculating sheet - CWD method'!J39 -> 0.8818670727 | I58: ='Calculating sheet - CWD method'!L39 -> 0.8627792474 | J58: ='Calculating sheet - CWD method'!N39 -> 0.9001647571
E59: Loenhout | G59: ='Calculating sheet - CWD method'!H40 -> 0.8931440153 | H59: ='Calculating sheet - CWD method'!J40 -> 0.9238404723 | I59: ='Calculating sheet - CWD method'!L40 -> 0.9004392043 | J59: 0
D60: OCUC | E60: Virtualys -> Zeebrugge | G60: ='Calculating sheet - CWD method'!H41 -> 0.3938169957 | H60: ='Calculating sheet - CWD method'!J41 -> 0.4005118846 | I60: ='Calculating sheet - CWD method'!L41 -> 0.4073205867 | J60: ='Calculating sheet - CWD method'!N41 -> 0.4142450366
E61: Zelzate -> Zeebrugge | G61: ='Calculating sheet - CWD method'!H42 -> 0.342885472 | H61: ='Calculating sheet - CWD method'!J42 -> 0.348714525 | I61: ='Calculating sheet - CWD method'!L42 -> 0.3546426719 | J61: ='Calculating sheet - CWD method'!N42 -> 0.3606715973
E62: Zeebrugge -> Zelzate | G62: ='Calculating sheet - CWD method'!H43 -> 0.342885472 | H62: ='Calculating sheet - CWD method'!J43 -> 0.348714525 | I62: ='Calculating sheet - CWD method'!L43 -> 0.3546426719 | J62: ='Calculating sheet - CWD method'!N43 -> 0.3606715973
E63: Eynatten 1+2 -> 's Gravenvoeren | G63: ='Calculating sheet - CWD method'!H44 -> 0.2840100394 | H63: ='Calculating sheet - CWD method'!J44 -> 0.2888382101 | I63: ='Calculating sheet - CWD method'!L44 -> 0.2937484596 | J63: ='Calculating sheet - CWD method'!N44 -> 0.2987421834
E64: 's Gravenvoeren -> Eynatten 1+2 | G64: ='Calculating sheet - CWD method'!H45 -> 0.2840100394 | H64: ='Calculating sheet - CWD method'!J45 -> 0.2888382101 | I64: ='Calculating sheet - CWD method'!L45 -> 0.2937484596 | J64: ='Calculating sheet - CWD method'!N45 -> 0.2987421834
C65: L-grid | D65: IP | E65: Hilvarenbeek L | G65: ='Calculating sheet - CWD method'!H46 -> 0.7827914067 | H65: ='Calculating sheet - CWD method'!J46 -> 0.8158272737 | I65: ='Calculating sheet - CWD method'!L46 -> 0.8084996041 | J65: ='Calculating sheet - CWD method'!N46 -> 0.8546123853
E66: Blaregnies L | G66: 0 | H66: =G66 -> 0 | I66: =H66 -> 0 | J66: =I66 -> 0
B68: Equalized entry tariffs (H/L) standardized as H | G68: =(SUMPRODUCT(G52:G59,'Calculating sheet - CWD method'!G14:G21)+SUMPRODUCT(G65:G66,'Calculating sheet - CWD method'!G27:G28))/(SUM('Calculating sheet - CWD method'!G14:G21,'Calculating sheet - CWD method'!G27:G28)) -> 0.7782300475 | H68: =(SUMPRODUCT(H52:H59,'Calculating sheet - CWD method'!H14:H21)+SUMPRODUCT(H65:H66,'Calculating sheet - CWD method'!H27:H28))/(SUM('Calculating sheet - CWD method'!H14:H21,'Calculating sheet - CWD method'!H27:H28)) -> 0.8079850374 | I68: =(SUMPRODUCT(I52:I59,'Calculating sheet - CWD method'!I14:I21)+SUMPRODUCT(I65:I66,'Calculating sheet - CWD method'!I27:I28))/(SUM('Calculating sheet - CWD method'!I14:I21,'Calculating sheet - CWD method'!I27:I28)) -> 0.7880076914 | J68: =(SUMPRODUCT(J52:J59,'Calculating sheet - CWD method'!J14:J21)+SUMPRODUCT(J65:J66,'Calculating sheet - CWD method'!J27:J28))/(SUM('Calculating sheet - CWD method'!J14:J21,'Calculating sheet - CWD method'!J27:J28)) -> 0.8190396977
C69: yearly change (%) | H69: =H68/G68-1 -> 0.0382341828 | I69: =I68/H68-1 -> -0.0247248959 | J69: =J68/I68-1 -> 0.03938033418
G71: Forecasted contracted capacity "Firm H-Gas equivalent" (in kWh/h/yr) | K71: CWD Weight of points in %
G72: =G13 -> 2020 | H72: =H13 -> 2021 | I72: =I13 -> 2022 | J72: =J13 -> 2023 | K72: =G72 -> 2020 | L72: =H72 -> 2021 | M72: =I72 -> 2022 | N72: =J72 -> 2023
B73: EXIT | C73: H-grid | D73: IP | E73: Alveringem | F73: Virtualys | G73: 0.1 | H73: 0.1 | I73: 0.1 | J73: 0.1 | K73: 1.00562836e-09 | L73: 1.007777574e-09 | M73: 9.599955537e-10 | N73: 1.003077574e-09
E74: Blaregnies H (Segeo & Troll) | G74: 26094377.47 | H74: 25506294.29 | I74: 25360725.25 | J74: 22457534.31 | K74: 0.2342681221 | L74: 0.2375883335 | M74: 0.2345141346 | N74: 0.214155617
E75: Zeebrugge (incl. IZT, ZPT, LNG-Terminal) | G75: 8793948.322 | H75: 6452019.75 | I75: 6550087.803 | J75: 6880287.58 | K75: 0.05333588737 | L75: 0.0381628085 | M75: 0.03499018592 | N75: 0.0392648805
E76: Zelzate 1+2 | G76: 3753953.153 | H76: 2772007.827 | I76: 3189315.437 | J76: 3510111.094 | K76: 0.02597752663 | L76: 0.0191942067 | M76: 0.02146668022 | N76: 0.02495029263
E77: Zandvliet H | G77: 0.1 | H77: 0.1 | I77: 0.1 | J77: 0.1 | K77: 8.91703206e-10 | L77: 8.990972429e-10 | M77: 8.947652734e-10 | N77: 9.470436754e-10
E78: 's Gravenvoeren | G78: 0.1 | H78: 0.1 | I78: 0.1 | J78: 0.1 | K78: 9.468334405e-10 | L78: 1.028331135e-09 | M78: 1.071824025e-09 | N78: 1.081847502e-09
E79: Eynatten 1+2 | G79: 4877549.799 | H79: 4646212.213 | I79: 4794135.987 | J79: 4289343.036 | K79: 0.0483740857 | L79: 0.04984409547 | M79: 0.05332417339 | N79: 0.04804347499
E80: Loenhout | G80: 0.1 | H80: 0.1 | I80: 0.1 | J80: 0.1 | K80: 1.01280726e-09 | L80: 1.022468263e-09 | M80: 1.032458573e-09 | N80: 1.095463269e-09
D81: OCUC | E81: Virtualys -> Zeebrugge | G81: 9089244 | H81: 9089244 | I81: 9089244 | J81: 8912859.385
E82: Zelzate -> Zeebrugge | G82: 5780549.313 | H82: 5262056.293 | I82: 4291661 | J82: 4310871
E83: Zeebrugge -> Zelzate | G83: 4357345.313 | H83: 4166070 | I83: 4166070 | J83: 2385190
E84: Eynatten 1+2 -> 's Gravenvoeren | G84: 0.1 | H84: 0.1 | I84: 0.1 | J84: 0.1
E85: 's Gravenvoeren -> Eynatten 1+2 | G85: 0.1 | H85: 0.1 | I85: 0.1 | J85: 0.1
D86: Dom | G86: 47920525.8 | H86: 51331856.73 | I86: 54520492.42 | J86: 57539478.79 | K86: 0.3543141222 | L86: 0.3938628872 | M86: 0.4213922288 | N86: 0.4593812943
C87: L-grid | D87: IP | E87: Hilvarenbeek L | G87: 0.1 | H87: 0.1 | I87: 0.1 | J87: 0.1 | K87: 3.341696209e-18 | L87: 3.933106429e-18 | M87: 4.49145067e-18 | N87: 5.300722707e-18
E88: Blaregnies L | G88: 12158113.44 | H88: 11844618.98 | I88: 11789972.67 | J88: 11788842.07 | K88: 0.10800756 | L88: 0.1091943726 | M88: 0.1094865135 | N88: 0.1130835955
D89: Dom | G89: 23766266.36 | H89: 19830025.22 | I89: 16150225.06 | J89: 12665819.34 | K89: 0.1757226921 | L89: 0.152153292 | M89: 0.1248260797 | N89: 0.1011208409
K90: =SUM(K73:K89) -> 1 | L90: =SUM(L73:L89) -> 1 | M90: =SUM(M73:M89) -> 1 | N90: =SUM(N73:N89) -> 1
G91: Revenue per Exit point (in €) and pseudo Tariffs in equivalent H (in €/kWh/h/yr)
G92: 2020 | I92: 2021 | K92: 2022 | M92: 2023
G93: Revenue/point | H93: Tariff | I93: Revenue/point | J93: Tariff | K93: Revenue/point | L93: Tariff | M93: Revenue/point | N93: Tariff
B94: EXIT | C94: H-grid | D94: IP | E94: Alveringem | F94: Virtualys | G94: =K73*$K$8 -> 0.1457900883 | H94: =G94/G73*1 -> 1.457900883 | I94: =L73*$L$8 -> 0.1464436951 | J94: =I94/H73*1 -> 1.464436951 | K94: =M73*$M$8 -> 0.1374909479 | L94: =K94/I73*1 -> 1.374909479 | M94: =N73*$N$8 -> 0.1461824671 | N94: =M94/J73*1 -> 1.461824671
E95: Blaregnies H (Segeo & Troll) | G95: 33962815.23 | H95: 1.301537669 | I95: 34524794.33 | J95: 1.353579392 | K95: 33587208.34 | L95: 1.324378858 | M95: 31209746.13 | N95: 1.38972274
E96: Zeebrugge (incl. IZT, ZPT, LNG-Terminal) | G96: 7732323.424 | H96: 0.8792777875 | I96: 5545571.6 | J96: 0.8595093962 | K96: 5011308.451 | L96: 0.7650750038 | M96: 5722226.526 | N96: 0.8316842079
E97: Zelzate 1+2 | G97: 3766069.106 | H97: 1.003227518 | I97: 2789177.52 | J97: 1.006193956 | K97: 3074466.544 | L97: 0.9639894843 | M97: 3636104.949 | N97: 1.035894549
E98: Zandvliet H | G98: 0.1292738891 | H98: 1.292738891 | I98: 0.1306509749 | J98: 1.306509749 | K98: 0.128148641 | L98: 1.28148641 | M98: 0.1380164252 | N98: 1.380164252
E99: 's Gravenvoeren | G99: 0.1372663464 | H99: 1.372663464 | I99: 0.1494304052 | J99: 1.494304052 | K99: 0.1535070664 | L99: 1.535070664 | M99: 0.1576619207 | N99: 1.576619207
E100: Eynatten 1+2 | G100: 7012990.585 | H100: 1.437810145 | I100: 7243020.394 | J100: 1.558908647 | K100: 7637109.483 | L100: 1.593010608 | M100: 7001565.866 | N100: 1.632316606
E101: Loenhout | G101: 0.1468308429 | H101: =G101/G80*(1-Parameters!$F$15)*1 -> 0 | I101: 0.1485784507 | J101: =I101/H80*(1-Parameters!$F$15)*1 -> 0 | K101: 0.1478691307 | L101: =K101/I80*(1-Parameters!$F$15)*1 -> 0 | M101: 0.1596462004 | N101: =M101/J80*(1-Parameters!$F$15)*1 -> 0
D102: OCUC | E102: Virtualys -> Zeebrugge | G102: =H102*G81 -> 7267467.19 | H102: =Parameters!H31*$F$8 -> 0.7995678398 | I102: =J102*H81 -> 7391014.133 | J102: =Parameters!I31*$F$8 -> 0.8131604931 | K102: =L102*I81 -> 7516661.373 | L102: =Parameters!J31*$F$8 -> 0.8269842214 | M102: =N102*J81 -> 7496097.578 | N102: =Parameters!K31*$F$8 -> 0.8410429532
E103: Zelzate -> Zeebrugge | G103: =H103*G82 -> 4024195.376 | H103: =Parameters!H29*$F$8 -> 0.6961614128 | I103: =J103*H82 -> 3725515.632 | J103: =Parameters!I29*$F$8 -> 0.7079961568 | K103: =L103*I82 -> 3090133.646 | L103: =Parameters!J29*$F$8 -> 0.7200320915 | M103: =N103*J82 -> 3156732.875 | N103: =Parameters!K29*$F$8 -> 0.732272637
E104: Zeebrugge -> Zelzate | G104: =H104*G83 -> 3033415.669 | H104: =Parameters!H30*$F$8 -> 0.6961614128 | I104: =J104*H83 -> 2949561.549 | J104: =Parameters!I30*$F$8 -> 0.7079961568 | K104: =L104*I83 -> 2999704.095 | L104: =Parameters!J30*$F$8 -> 0.7200320915 | M104: =N104*J83 -> 1746609.371 | N104: =Parameters!K30*$F$8 -> 0.732272637
E105: Eynatten 1+2 -> 's Gravenvoeren | G105: =H105*G84 -> 0.05766264436 | H105: =Parameters!H34*$F$8 -> 0.5766264436 | I105: =J105*H84 -> 0.05864290932 | J105: =Parameters!I34*$F$8 -> 0.5864290932 | K105: =L105*I84 -> 0.05963983877 | L105: =Parameters!J34*$F$8 -> 0.5963983877 | M105: =N105*J84 -> 0.06065371603 | N105: =Parameters!K34*$F$8 -> 0.6065371603
E106: 's Gravenvoeren -> Eynatten 1+2 | G106: =H106*G85 -> 0.05766264436 | H106: =Parameters!H33*$F$8 -> 0.5766264436 | I106: =J106*H85 -> 0.05864290932 | J106: =Parameters!I33*$F$8 -> 0.5864290932 | K106: =L106*I85 -> 0.05963983877 | L106: =Parameters!J33*$F$8 -> 0.5963983877 | M106: =N106*J85 -> 0.06065371603 | N106: =Parameters!K33*$F$8 -> 0.6065371603
D107: Dom | G107: =K86*$K$8 -> 51366378.65 | H107: =G107/G86*1 -> 1.07190766 | I107: =L86*$L$8 -> 57233598.04 | J107: =I107/H86*1 -> 1.114972294 | K107: =M86*$M$8 -> 60351963.88 | L107: =K107/I86*1 -> 1.106959259 | M107: =N86*$N$8 -> 66947455.2 | N107: =M107/J86*1 -> 1.163504721
C108: L-grid | D108: IP | E108: Hilvarenbeek L | G108: =K87*$K$8 -> 4.844594727e-10 | H108: =G108/G87*Parameters!$F$17*'Calculating sheet - CWD method'!$F$10*1 -> 5.027502896e-09 | I108: =L87*$L$8 -> 5.715334948e-10 | J108: =I108/H87*Parameters!$F$17*'Calculating sheet - CWD method'!$F$10*1 -> 5.931118002e-09 | K108: =M87*$M$8 -> 6.43267365e-10 | L108: =K108/I87*Parameters!$F$17*'Calculating sheet - CWD method'!$F$10*1 -> 6.6755399e-09 | M108: =N87*$N$8 -> 7.724953113e-10 | N108: =M108/J87*Parameters!$F$17*'Calculating sheet - CWD method'!$F$10*1 -> 8.016609506e-09
E109: Blaregnies L | G109: =K88*$K$8 -> 15658301.15 | H109: =G109/G88*1 -> 1.287889049 | I109: =L88*$L$8 -> 15867417.4 | J109: =I109/H88*1 -> 1.339630885 | K109: =M88*$M$8 -> 15680702.34 | L109: =K109/I88*1 -> 1.330003282 | M109: =N88*$N$8 -> 16480120.19 | N109: =M109/J88*1 -> 1.397942231
D110: Dom | G110: =K89*$K$8 -> 25475242.95 | H110: =G110/G89*1 -> 1.07190766 | I110: =L89*$L$8 -> 22109928.7 | J110: =I110/H89*1 -> 1.114972294 | K110: =M89*$M$8 -> 17877641.16 | L110: =K110/I89*1 -> 1.106959259 | M110: =N89*$N$8 -> 14736740.59 | N110: =M110/J89*1 -> 1.163504721
G112: "virtual tariff" for "equivalent firm H-gas capacity" (in €/kWh/h/yr)
G113: 2020 | H113: =G113+1 -> 2021 | I113: =H113+1 -> 2022 | J113: =I113+1 -> 2023
G114: =Parameters!H3 -> 0.016 | H114: =Parameters!I3 -> 0.017 | I114: =Parameters!J3 -> 0.017 | J114: =Parameters!K3 -> 0.017
B115: EXIT | C115: H-grid | D115: IP | E115: Alveringem | F115: Virtualys | G115: =G116 -> 1.301537669 | H115: =H116 -> 1.353579392 | I115: =I116 -> 1.324378858 | J115: =J116 -> 1.38972274
E116: Blaregnies H (Segeo & Troll) | G116: ='Calculating sheet - CWD method'!H95 -> 1.301537669 | H116: ='Calculating sheet - CWD method'!J95 -> 1.353579392 | I116: ='Calculating sheet - CWD method'!L95 -> 1.324378858 | J116: ='Calculating sheet - CWD method'!N95 -> 1.38972274
E117: Zeebrugge (incl. IZT, ZPT, LNG-Terminal) | G117: ='Calculating sheet - CWD method'!H96 -> 0.8792777875 | H117: ='Calculating sheet - CWD method'!J96 -> 0.8595093962 | I117: ='Calculating sheet - CWD method'!L96 -> 0.7650750038 | J117: ='Calculating sheet - CWD method'!N96 -> 0.8316842079
E118: Zelzate 1+2 | G118: ='Calculating sheet - CWD method'!H97 -> 1.003227518 | H118: ='Calculating sheet - CWD method'!J97 -> 1.006193956 | I118: ='Calculating sheet - CWD method'!L97 -> 0.9639894843 | J118: ='Calculating sheet - CWD method'!N97 -> 1.035894549
E119: Zandvliet H | G119: =G118 -> 1.003227518 | H119: =H118 -> 1.006193956 | I119: =I118 -> 0.9639894843 | J119: =J118 -> 1.035894549
E120: 's Gravenvoeren | G120: =G118 -> 1.003227518 | H120: =H118 -> 1.006193956 | I120: =I118 -> 0.9639894843 | J120: =J118 -> 1.035894549
E121: Eynatten 1+2 | G121: ='Calculating sheet - CWD method'!H100 -> 1.437810145 | H121: ='Calculating sheet - CWD method'!J100 -> 1.558908647 | I121: ='Calculating sheet - CWD method'!L100 -> 1.593010608 | J121: ='Calculating sheet - CWD method'!N100 -> 1.632316606
E122: Loenhout | G122: ='Calculating sheet - CWD method'!H101 -> 0 | H122: ='Calculating sheet - CWD method'!J101 -> 0 | I122: ='Calculating sheet - CWD method'!L101 -> 0 | J122: ='Calculating sheet - CWD method'!N101 -> 0
D123: OCUC | E123: Virtualys -> Zeebrugge | G123: ='Calculating sheet - CWD method'!H102 -> 0.7995678398 | H123: ='Calculating sheet - CWD method'!J102 -> 0.8131604931 | I123: ='Calculating sheet - CWD method'!L102 -> 0.8269842214 | J123: ='Calculating sheet - CWD method'!N102 -> 0.8410429532
E124: Zelzate -> Zeebrugge | G124: ='Calculating sheet - CWD method'!H103 -> 0.6961614128 | H124: ='Calculating sheet - CWD method'!J103 -> 0.7079961568 | I124: ='Calculating sheet - CWD method'!L103 -> 0.7200320915 | J124: ='Calculating sheet - CWD method'!N103 -> 0.732272637
E125: Zeebrugge -> Zelzate | G125: ='Calculating sheet - CWD method'!H104 -> 0.6961614128 | H125: ='Calculating sheet - CWD method'!J104 -> 0.7079961568 | I125: ='Calculating sheet - CWD method'!L104 -> 0.7200320915 | J125: ='Calculating sheet - CWD method'!N104 -> 0.732272637
E126: Eynatten 1+2 -> 's Gravenvoeren | G126: ='Calculating sheet - CWD method'!H105 -> 0.5766264436 | H126: ='Calculating sheet - CWD method'!J105 -> 0.5864290932 | I126: ='Calculating sheet - CWD method'!L105 -> 0.5963983877 | J126: ='Calculating sheet - CWD method'!N105 -> 0.6065371603
E127: 's Gravenvoeren -> Eynatten 1+2 | G127: ='Calculating sheet - CWD method'!H106 -> 0.5766264436 | H127: ='Calculating sheet - CWD method'!J106 -> 0.5864290932 | I127: ='Calculating sheet - CWD method'!L106 -> 0.5963983877 | J127: ='Calculating sheet - CWD method'!N106 -> 0.6065371603
D128: Dom | G128: ='Calculating sheet - CWD method'!H107 -> 1.07190766 | H128: ='Calculating sheet - CWD method'!J107 -> 1.114972294 | I128: ='Calculating sheet - CWD method'!L107 -> 1.106959259 | J128: ='Calculating sheet - CWD method'!N107 -> 1.163504721
C129: L-grid | D129: IP | E129: Hilvarenbeek L | G129: ='Calculating sheet - CWD method'!H108 -> 5.027502896e-09 | H129: ='Calculating sheet - CWD method'!J108 -> 5.931118002e-09 | I129: ='Calculating sheet - CWD method'!L108 -> 6.6755399e-09 | J129: ='Calculating sheet - CWD method'!N108 -> 8.016609506e-09
E130: Blaregnies L | G130: ='Calculating sheet - CWD method'!H109 -> 1.287889049 | H130: ='Calculating sheet - CWD method'!J109 -> 1.339630885 | I130: ='Calculating sheet - CWD method'!L109 -> 1.330003282 | J130: ='Calculating sheet - CWD method'!N109 -> 1.397942231
D131: Dom | G131: ='Calculating sheet - CWD method'!H110 -> 1.07190766 | H131: ='Calculating sheet - CWD method'!J110 -> 1.114972294 | I131: ='Calculating sheet - CWD method'!L110 -> 1.106959259 | J131: ='Calculating sheet - CWD method'!N110 -> 1.163504721

Sheet Results - Estimated ref. prices
B2: ENTRY | D2: Reference price in €/kWh/h/year - FIRM | I2: EXIT | K2: Reference price in €/kWh/h/year - FIRM
B3: Border with | C3: Interconnection Point | D3: 2020 | E3: 2021 | F3: 2022 | G3: 2023 | I3: Border with | J3: Interconnection Point | K3: 2020 | L3: 2021 | M3: 2022 | N3: 2023
D4: =Parameters!H$3 -> 0.016 | E4: =Parameters!I$3 -> 0.017 | F4: =Parameters!J$3 -> 0.017 | G4: =Parameters!K$3 -> 0.017 | K4: =Parameters!H$3 -> 0.016 | L4: =Parameters!I$3 -> 0.017 | M4: =Parameters!J$3 -> 0.017 | N4: =Parameters!K$3 -> 0.017
B5: France | C5: Virtualys | D5: =SUM('Calculating sheet - CWD method'!G68:J68)/(1+(1+'Calculating sheet - CWD method'!$H$51)+(1+'Calculating sheet - CWD method'!$H$51)*(1+'Calculating sheet - CWD method'!$I$51)+(1+'Calculating sheet - CWD method'!$H$51)*(1+'Calculating sheet - CWD method'!$I$51)*(1+'Calculating sheet - CWD method'!$J$51)) -> 0.7782445148 | E5: =D5*(1+E$4) -> 0.7914746716 | F5: =E5*(1+F$4) -> 0.804929741 | G5: 0.8186135466 | I5: France | J5: Virtualys | K5: =SUM('Calculating sheet - CWD method'!G115,'Calculating sheet - CWD method'!H115,'Calculating sheet - CWD method'!I115,'Calculating sheet - CWD method'!J115)/(1+(1+'Calculating sheet - CWD method'!$H$51)+(1+'Calculating sheet - CWD method'!$H$51)*(1+'Calculating sheet - CWD method'!$I$51)+(1+'Calculating sheet - CWD method'!$H$51)*(1+'Calculating sheet - CWD method'!$I$51)*(1+'Calculating sheet - CWD method'!$J$51)) -> 1.308556689 | L5: =K5*(1+L$4) -> 1.330802153 | M5: 1.35342579 | N5: 1.376434028
B6: Germany | C6: Eynatten 1 | D6: =D5 -> 0.7782445148 | E6: =D6*(1+E$4) -> 0.7914746716 | F6: 0.804929741 | G6: 0.8186135466 | J6: Blaregnies L | K6: =SUM('Calculating sheet - CWD method'!G130,'Calculating sheet - CWD method'!H130,'Calculating sheet - CWD method'!I130,'Calculating sheet - CWD method'!J130)/(1+(1+'Calculating sheet - CWD method'!$H$51)+(1+'Calculating sheet - CWD method'!$H$51)*(1+'Calculating sheet - CWD method'!$I$51)+(1+'Calculating sheet - CWD method'!$H$51)*(1+'Calculating sheet - CWD method'!$I$51)*(1+'Calculating sheet - CWD method'!$J$51))*'Calculating sheet - CWD method'!$F$10 -> 1.504981081 | L6: 1.530565759 | M6: 1.556585377 | N6: 1.583047329
C7: Eynatten 2 | D7: =D5 -> 0.7782445148 | E7: =D7*(1+E$4) -> 0.7914746716 | F7: 0.804929741 | G7: 0.8186135466 | I7: Germany | J7: Eynatten 1 | K7: =SUM('Calculating sheet - CWD method'!G121,'Calculating sheet - CWD method'!H121,'Calculating sheet - CWD method'!I121,'Calculating sheet - CWD method'!J121)/(1+(1+'Calculating sheet - CWD method'!$H$51)+(1+'Calculating sheet - CWD method'!$H$51)*(1+'Calculating sheet - CWD method'!$I$51)+(1+'Calculating sheet - CWD method'!$H$51)*(1+'Calculating sheet - CWD method'!$I$51)*(1+'Calculating sheet - CWD method'!$J$51)) -> 1.516403119 | L7: 1.542181972 | M7: 1.568399065 | N7: 1.59506185
B8: The Netherlands | C8: 's Gravenvoeren | D8: =D5 -> 0.7782445148 | E8: =D8*(1+E$4) -> 0.7914746716 | F8: 0.804929741 | G8: 0.8186135466 | J8: Eynatten 2 | K8: =SUM('Calculating sheet - CWD method'!G121,'Calculating sheet - CWD method'!H121,'Calculating sheet - CWD method'!I121,'Calculating sheet - CWD method'!J121)/(1+(1+'Calculating sheet - CWD method'!$H$51)+(1+'Calculating sheet - CWD method'!$H$51)*(1+'Calculating sheet - CWD method'!$I$51)+(1+'Calculating sheet - CWD method'!$H$51)*(1+'Calculating sheet - CWD method'!$I$51)*(1+'Calculating sheet - CWD method'!$J$51)) -> 1.516403119 | L8: 1.542181972 | M8: 1.568399065 | N8: 1.59506185
C9: Zandvliet H | D9: =D5 -> 0.7782445148 | E9: =D9*(1+E$4) -> 0.7914746716 | F9: 0.804929741 | G9: 0.8186135466 | I9: The Netherlands | J9: Zelzate 1 | K9: =SUM('Calculating sheet - CWD method'!G118,'Calculating sheet - CWD method'!H118,'Calculating sheet - CWD method'!I118,'Calculating sheet - CWD method'!J118)/(1+(1+'Calculating sheet - CWD method'!$H$51)+(1+'Calculating sheet - CWD method'!$H$51)*(1+'Calculating sheet - CWD method'!$I$51)+(1+'Calculating sheet - CWD method'!$H$51)*(1+'Calculating sheet - CWD method'!$I$51)*(1+'Calculating sheet - CWD method'!$J$51)) -> 0.9771260724 | L9: 0.9937372157 | M9: 1.010630748 | N9: 1.027811471
C10: Zelzate 1 | D10: =D5 -> 0.7782445148 | E10: =D10*(1+E$4) -> 0.7914746716 | F10: 0.804929741 | G10: 0.8186135466 | J10: Zelzate 2 | K10: =SUM('Calculating sheet - CWD method'!G118,'Calculating sheet - CWD method'!H118,'Calculating sheet - CWD method'!I118,'Calculating sheet - CWD method'!J118)/(1+(1+'Calculating sheet - CWD method'!$H$51)+(1+'Calculating sheet - CWD method'!$H$51)*(1+'Calculating sheet - CWD method'!$I$51)+(1+'Calculating sheet - CWD method'!$H$51)*(1+'Calculating sheet - CWD method'!$I$51)*(1+'Calculating sheet - CWD method'!$J$51)) -> 0.9771260724 | L10: 0.9937372157 | M10: 1.010630748 | N10: 1.027811471
C11: Hilvarenbeek L | D11: =D5*'Calculating sheet - CWD method'!$F$10 -> 0.8973635732 | E11: =D11*(1+E$4) -> 0.912618754 | F11: 0.9281332728 | G11: 0.9439115384 | I11: United Kingdom | J11: IZT | K11: =SUM('Calculating sheet - CWD method'!G117,'Calculating sheet - CWD method'!H117,'Calculating sheet - CWD method'!I117,'Calculating sheet - CWD method'!J117)/(1+(1+'Calculating sheet - CWD method'!$H$51)+(1+'Calculating sheet - CWD method'!$H$51)*(1+'Calculating sheet - CWD method'!$I$51)+(1+'Calculating sheet - CWD method'!$H$51)*(1+'Calculating sheet - CWD method'!$I$51)*(1+'Calculating sheet - CWD method'!$J$51)) -> 0.8129211762 | L11: 0.8267408362 | M11: 0.8407954304 | N11: 0.8550889527
B12: United Kingdom | C12: IZT | D12: =D5 -> 0.7782445148 | E12: =D12*(1+E$4) -> 0.7914746716 | F12: 0.804929741 | G12: 0.8186135466 | I12: Zeebrugge Area | J12: Zeebrugge | K12: =SUM('Calculating sheet - CWD method'!G117,'Calculating sheet - CWD method'!H117,'Calculating sheet - CWD method'!I117,'Calculating sheet - CWD method'!J117)/(1+(1+'Calculating sheet - CWD method'!$H$51)+(1+'Calculating sheet - CWD method'!$H$51)*(1+'Calculating sheet - CWD method'!$I$51)+(1+'Calculating sheet - CWD method'!$H$51)*(1+'Calculating sheet - CWD method'!$I$51)*(1+'Calculating sheet - CWD method'!$J$51)) -> 0.8129211762 | L12: 0.8267408362 | M12: 0.8407954304 | N12: 0.8550889527
B13: Zeebrugge Area | C13: Zeebrugge | D13: =D5 -> 0.7782445148 | E13: =D13*(1+E$4) -> 0.7914746716 | F13: 0.804929741 | G13: 0.8186135466 | I13: Storage | J13: Loenhout | K13: =SUM('Calculating sheet - CWD method'!G122,'Calculating sheet - CWD method'!H122,'Calculating sheet - CWD method'!I122,'Calculating sheet - CWD method'!J122)/(1+(1+'Calculating sheet - CWD method'!$H$51)+(1+'Calculating sheet - CWD method'!$H$51)*(1+'Calculating sheet - CWD method'!$I$51)+(1+'Calculating sheet - CWD method'!$H$51)*(1+'Calculating sheet - CWD method'!$I$51)*(1+'Calculating sheet - CWD method'!$J$51)) -> 0 | L13: 0 | M13: 0 | N13: 0
B14: Norway | C14: ZPT | D14: =D5 -> 0.7782445148 | E14: =D14*(1+E$4) -> 0.7914746716 | F14: 0.804929741 | G14: 0.8186135466
B15: LNG Terminal | C15: Dunkirk LNG Terminal | D15: =D5 -> 0.7782445148 | E15: =D15*(1+E$4) -> 0.7914746716 | F15: 0.804929741 | G15: 0.8186135466
C16: Zeebrugge LNG Terminal | D16: =D5 -> 0.7782445148 | E16: =D16*(1+E$4) -> 0.7914746716 | F16: 0.804929741 | G16: 0.8186135466
B17: Storage | C17: Loenhout | D17: =D5*(1-Parameters!$F$14) -> 0.3891222574 | E17: =D17*(1+E$4) -> 0.3957373358 | F17: 0.4024648705 | G17: 0.4093067733
B19: OCUC | D19: Reference price in €/kWh/h/year - FIRM | I19: OTHER TRANSMISSION SERVICES | K19: Reference price in €/kWh/h/year - FIRM
D20: 2020 | E20: 2021 | F20: 2022 | G20: 2023 | K20: 2020 | L20: 2021 | M20: 2022 | N20: 2023
D21: =Parameters!H$3 -> 0.016 | E21: =Parameters!I$3 -> 0.017 | F21: =Parameters!J$3 -> 0.017 | G21: =Parameters!K$3 -> 0.017 | K21: =Parameters!H$3 -> 0.016 | L21: =Parameters!I$3 -> 0.017 | M21: =Parameters!J$3 -> 0.017 | N21: =Parameters!K$3 -> 0.017
B22: Zelzate 1/2/VIP BE-NL - IZT/Zeebrugge | D22: =SUM('Calculating sheet - CWD method'!G124,'Calculating sheet - CWD method'!H124,'Calculating sheet - CWD method'!I124,'Calculating sheet - CWD method'!J124)/(1+(1+'Calculating sheet - CWD method'!$H$51)+(1+'Calculating sheet - CWD method'!$H$51)*(1+'Calculating sheet - CWD method'!$I$51)+(1+'Calculating sheet - CWD method'!$H$51)*(1+'Calculating sheet - CWD method'!$I$51)*(1+'Calculating sheet - CWD method'!$J$51))+SUM('Calculating sheet - CWD method'!G61,'Calculating sheet - CWD method'!H61,'Calculating sheet - CWD method'!I61,'Calculating sheet - CWD method'!J61)/(1+(1+'Calculating sheet - CWD method'!$H$51)+(1+'Calculating sheet - CWD method'!$H$51)*(1+'Calculating sheet - CWD method'!$I$51)+(1+'Calculating sheet - CWD method'!$H$51)*(1+'Calculating sheet - CWD method'!$I$51)*(1+'Calculating sheet - CWD method'!$J$51)) -> 1.039046885 | E22: =D22*(1+E$21) -> 1.056710682 | F22: 1.074674763 | G22: 1.092944234 | I22: Domestic HP H-grid | K22: =SUM('Calculating sheet - CWD method'!G128,'Calculating sheet - CWD method'!H128,'Calculating sheet - CWD method'!I128,'Calculating sheet - CWD method'!J128)/(1+(1+'Calculating sheet - CWD method'!$H$51)+(1+'Calculating sheet - CWD method'!$H$51)*(1+'Calculating sheet - CWD method'!$I$51)+(1+'Calculating sheet - CWD method'!$H$51)*(1+'Calculating sheet - CWD method'!$I$51)*(1+'Calculating sheet - CWD method'!$J$51)) -> 1.086319554 | L22: =K22*(1+L$21) -> 1.104786986 | M22: 1.123568365 | N22: 1.142669027
B23: IZT/Zeebrugge - Zelzate 1/2/VIP BE-NL | D23: =SUM('Calculating sheet - CWD method'!G62,'Calculating sheet - CWD method'!H62,'Calculating sheet - CWD method'!I62,'Calculating sheet - CWD method'!J62)/(1+(1+'Calculating sheet - CWD method'!$H$51)+(1+'Calculating sheet - CWD method'!$H$51)*(1+'Calculating sheet - CWD method'!$I$51)+(1+'Calculating sheet - CWD method'!$H$51)*(1+'Calculating sheet - CWD method'!$I$51)*(1+'Calculating sheet - CWD method'!$J$51))+SUM('Calculating sheet - CWD method'!G125,'Calculating sheet - CWD method'!H125,'Calculating sheet - CWD method'!I125,'Calculating sheet - CWD method'!J125)/(1+(1+'Calculating sheet - CWD method'!$H$51)+(1+'Calculating sheet - CWD method'!$H$51)*(1+'Calculating sheet - CWD method'!$I$51)+(1+'Calculating sheet - CWD method'!$H$51)*(1+'Calculating sheet - CWD method'!$I$51)*(1+'Calculating sheet - CWD method'!$J$51)) -> 1.039046885 | E23: 1.056710682 | F23: 1.074674763 | G23: 1.092944234 | I23: Domestic HP L-grid | K23: =K22*'Calculating sheet - CWD method'!$F$10 -> 1.252592955 | L23: 1.273887035 | M23: 1.295543115 | N23: 1.317567348
B24: Dunkirk LNG Terminal/Vitrualys - IZT/Zeebrugge | D24: =SUM('Calculating sheet - CWD method'!G123,'Calculating sheet - CWD method'!H123,'Calculating sheet - CWD method'!I123,'Calculating sheet - CWD method'!J123)/(1+(1+'Calculating sheet - CWD method'!$H$51)+(1+'Calculating sheet - CWD method'!$H$51)*(1+'Calculating sheet - CWD method'!$I$51)+(1+'Calculating sheet - CWD method'!$H$51)*(1+'Calculating sheet - CWD method'!$I$51)*(1+'Calculating sheet - CWD method'!$J$51))+SUM('Calculating sheet - CWD method'!G60,'Calculating sheet - CWD method'!H60,'Calculating sheet - CWD method'!I60,'Calculating sheet - CWD method'!J60)/(1+(1+'Calculating sheet - CWD method'!$H$51)+(1+'Calculating sheet - CWD method'!$H$51)*(1+'Calculating sheet - CWD method'!$I$51)+(1+'Calculating sheet - CWD method'!$H$51)*(1+'Calculating sheet - CWD method'!$I$51)*(1+'Calculating sheet - CWD method'!$J$51)) -> 1.193384835 | E24: 1.213672378 | F24: 1.234304808 | G24: 1.25528799 | I24: 70% Entry + Domestic HP H-grid | K24: =0.7*D5+K22 -> 1.631090714 | L24: 1.658819257 | M24: 1.687019184 | N24: 1.71569851
B25: 's Gravenvoeren - Eynatten 1/2 | D25: =SUM('Calculating sheet - CWD method'!G64,'Calculating sheet - CWD method'!H64,'Calculating sheet - CWD method'!I64,'Calculating sheet - CWD method'!J64)/(1+(1+'Calculating sheet - CWD method'!$H$51)+(1+'Calculating sheet - CWD method'!$H$51)*(1+'Calculating sheet - CWD method'!$I$51)+(1+'Calculating sheet - CWD method'!$H$51)*(1+'Calculating sheet - CWD method'!$I$51)*(1+'Calculating sheet - CWD method'!$J$51))+SUM('Calculating sheet - CWD method'!G127,'Calculating sheet - CWD method'!H127,'Calculating sheet - CWD method'!I127,'Calculating sheet - CWD method'!J127)/(1+(1+'Calculating sheet - CWD method'!$H$51)+(1+'Calculating sheet - CWD method'!$H$51)*(1+'Calculating sheet - CWD method'!$I$51)+(1+'Calculating sheet - CWD method'!$H$51)*(1+'Calculating sheet - CWD method'!$I$51)*(1+'Calculating sheet - CWD method'!$J$51)) -> 0.860636483 | E25: 0.8752673032 | F25: 0.8901468474 | G25: 0.9052793438
B26: Eynatten 1/2 - 's Gravenvoeren | D26: =SUM('Calculating sheet - CWD method'!G126,'Calculating sheet - CWD method'!H126,'Calculating sheet - CWD method'!I126,'Calculating sheet - CWD method'!J126)/(1+(1+'Calculating sheet - CWD method'!$H$51)+(1+'Calculating sheet - CWD method'!$H$51)*(1+'Calculating sheet - CWD method'!$I$51)+(1+'Calculating sheet - CWD method'!$H$51)*(1+'Calculating sheet - CWD method'!$I$51)*(1+'Calculating sheet - CWD method'!$J$51))+SUM('Calculating sheet - CWD method'!G64,'Calculating sheet - CWD method'!H64,'Calculating sheet - CWD method'!I64,'Calculating sheet - CWD method'!J64)/(1+(1+'Calculating sheet - CWD method'!$H$51)+(1+'Calculating sheet - CWD method'!$H$51)*(1+'Calculating sheet - CWD method'!$I$51)+(1+'Calculating sheet - CWD method'!$H$51)*(1+'Calculating sheet - CWD method'!$I$51)*(1+'Calculating sheet - CWD method'!$J$51)) -> 0.860636483 | E26: 0.8752673032 | F26: 0.8901468474 | G26: 0.9052793438
